Cogmind - Beta 15 @@@ ROGUE MODE // 2025.09.23 @ 17:07:28 Player: kiul Result: Destroyed by G-47 Trooper with Particle Gun Performance ------------- Evolutions (1) 500 Regions Visited (3) 600 Robots Destroyed (29) 145 Value Destroyed (642) 642 Prototype IDs (4) 80 Alien Tech Used (0) 0 Bonus (0) 0 TOTAL SCORE: 1967 Bonus ------- None Cogmind --------- Core Integrity 0/400 Matter 232/300 Energy 11/125 System Corruption 0% Temperature Warm (147) Movement Core (600) Ox11 Location -9/Materials Parts ------- > --- POWER (1) -------- Light Ion Engine > --- PROPULSION (3) --- (None) > --- UTILITY (3) ------ Large Storage Unit Improved Targeting Computer Hardened Light Armor Plating > --- WEAPON (2) ------- Heavy EM Pulse Gun Advanced Beam Cannon > --- INVENTORY (15) --- Improved Ion Engine Cooling System Compact Battery (200) Machine Analyzer Machine Analyzer Visual Processing Unit Propulsion Shielding Peak State ------------ > --- POWER ------------ Ion Engine > --- PROPULSION ------- Improved Aluminum Leg Improved Aluminum Leg Improved Aluminum Leg > --- UTILITY ---------- Large Storage Unit Signal Interpreter Melee Analysis Suite > --- WEAPON ----------- Advanced Beam Cannon Heavy Hammer > --- INVENTORY -------- Light Ion Engine Improved Ion Engine Aluminum Leg Aluminum Leg Aluminum Leg Aluminum Leg Cooling System Compact Battery Machine Analyzer Machine Analyzer Visual Processing Unit Melee Analysis Suite Propulsion Shielding Hardened Light Armor Plating Grenade Launcher [Rating: 19] Favorites ----------- Power Ion Engine Engine Ion Engine Propulsion Aluminum Leg Leg Aluminum Leg Utility Targeting Computer Storage Large Storage Unit Processor Targeting Computer Protection Hardened Light Armor Plating Weapon EM Pulse Gun Energy Gun EM Pulse Gun Energy Cannon Advanced Beam Cannon Launcher Grenade Launcher Impact Weapon Heavy Hammer Build | -11 -10 -10 -9 ------- Run | Yrd Mat Min Mat Slots Evolved 2 | . . . 2 Power . | . . . . Propulsion 1 | . . . 1 Utility 1 | . . . 1 Weapon . | . . . . Parts Attached 31 | 6 2 4 19 Power 2 | 1 . . 1 Engine 2 | 1 . . 1 Core . | . . . . Reactor . | . . . . Propulsion 11 | 2 . 3 6 Treads . | . . . . Leg 11 | 2 . 3 6 Wheel . | . . . . Hover . | . . . . Flight . | . . . . Utility 8 | 1 1 . 6 Device . | . . . . Storage 2 | 1 . . 1 Processor 5 | . 1 . 4 Hackware . | . . . . Protection 1 | . . . 1 Artifact . | . . . . Weapon 10 | 2 1 1 6 Energy Gun 6 | 2 1 . 3 Energy Cannon 2 | . . . 2 Ballistic Gun . | . . . . Ballistic Cannon . | . . . . Launcher 1 | . . 1 . Special Weapon . | . . . . Impact Weapon 1 | . . . 1 Slashing Weapon . | . . . . Piercing Weapon . | . . . . Special Melee Weapon . | . . . . Unidentified Prototypes 1 | . . . 1 Parts Lost 7 | . . 1 6 Power 1 | . . . 1 Propulsion 3 | . . . 3 Utility 1 | . . . 1 Weapon 2 | . . 1 1 Highest Loss Streak 5 | . . 1 5 To Critical Strikes . | . . . . Average Backups 7 | 1 2 5 11 Power . | . . . 1 Propulsion 2 | . 1 3 1 Utility 4 | . 1 2 7 Weapon . | . . . 1 Tool/Special . | . . . . Unused Backups 9 | . . . 9 Power 1 | . . . 1 Propulsion 2 | . . . 2 Utility 6 | . . . 6 Weapon . | . . . . Tool/Special . | . . . . Average Slot Usage (%) 92 | . 95 97 88 Engine 10 | . 14 14 7 Leg 28 | . 28 28 28 Storage 12 | . 14 14 11 Processor 16 | . 9 14 20 Energy Gun 13 | . 28 24 2 Energy Cannon 1 | . . . 3 Launcher 2 | . . . 4 Impact Weapon 5 | . . . 9 Peak Build Rating 19 | 6 7 7 19 Average Rating 10 | 3 6 6 13 On Entrance 5 | . 6 7 7 Naked Turns . | . . . . Heaviest Build 32 | 13 14 15 32 Greatest Support 39 | 20 20 20 39 Greatest Overweight (x) 7 | . . . 7 Average Overweight (x) . | . . . . Largest Inventory Capacity 15 | 8 8 8 15 Average Capacity 11 | 6 8 8 14 Most Carried 15 | 5 5 8 15 Average Carried 8 | 1 2 5 11 Final Capacity 15 | 8 8 8 15 Final Carried 7 | . 5 5 7 Class Distribution -------------------- 100% | Mutant Dominant Class ---------------- Mutant | -10/Materials Mutant | -10/Mines Mutant | -9/Materials Resources | -11 -10 -10 -9 ----------- Run | Yrd Mat Min Mat Matter Collected 469 | 191 85 15 178 Remotely . | . . . . Salvage Created 858 | . 96 281 481 Parts 57 | . 5 22 30 Haulers Intercepted . | . . . . Recyclers Shooed 1 | . . 1 . Parts Field Recycled . | . . . . Retrieved Matter . | . . . . Parts Self-Destructed . | . . . . Prevented . | . . . . Kills | -11 -10 -10 -9 ------- Run | Yrd Mat Min Mat Combat Hostiles Destroyed 22 | . 2 9 11 Melee 1 | . . . 1 Guns 11 | . 2 8 1 Cannons 2 | . . . 2 AOE 4 | . . 1 3 Classes Destroyed 7 | . 1 2 4 Worker 1 | . . . 1 Builder 1 | . . . 1 Recycler 2 | . . 1 1 Watcher 3 | . . . 3 Swarmer 9 | . . 6 3 Grunt 12 | . 2 3 7 Sentry 1 | . . . 1 Best Kill Streak 7 | . 2 7 4 Combat Bots Only 6 | . 2 6 4 Max Kills in Single Turn 2 | . 1 2 2 Gunslinging . | . . . . Exploded 2 | . . 1 2 Melee 1 | . . . 1 Uniques/NPCs Destroyed . | . . . . Combat | -11 -10 -10 -9 -------- Run | Yrd Mat Min Mat Hostile Shots Fired 148 | . 10 31 107 Missed 33 | . 3 8 22 Hits 115 | . 7 23 85 Projectile 115 | . 7 23 85 AOE 1 | . . . 1 Critical Strikes 4 | . . . 4 Damage Taken 1458 | . 78 288 1092 Core 502 | . 11 80 411 Absorbed by Shields . | . . . . Core Remaining (%) 81 | 100 . 63 . Volleys Fired 49 | . 9 16 24 Largest 2 | . 2 2 2 Hottest 113 | . 80 80 113 Shots Fired 75 | . 18 30 27 Gun 58 | . 18 30 10 Cannon 14 | . . . 14 Launcher 3 | . . . 3 Special . | . . . . Kinetic . | . . . . Thermal 19 | . . . 19 Explosive 3 | . . . 3 Electromagnetic 53 | . 18 30 5 Robot Hit Streak 14 | . 7 5 14 Robot Miss Streak 5 | . 3 5 3 Penetration Max . | . . . . Secondary Targets 1 | . . 1 . Max Gunslinging Chain 1 | . . 1 . Shots Hit Robots 64 | . 12 18 34 Core Hits 29 | . 3 11 15 Critical Kills 1 | . . . 1 Critical Parts Destroyed 1 | . . . 1 Critical Strikes 3 | . . 1 2 Corrupt 1 | . . 1 . Smash 2 | . . . 2 Melee Attacks 23 | . . . 23 Impact 23 | . . . 23 Slashing . | . . . . Piercing . | . . . . Sneak Attacks 1 | . . . 1 Combat Hostiles . | . . . . Follow-up Attacks . | . . . . Damage Inflicted 1697 | 4 153 406 1134 Guns 519 | . 153 259 107 Cannons 205 | . . . 205 Explosions 418 | . . 147 271 Melee 550 | . . . 550 Ramming 5 | 4 . . 1 Kinetic . | . . . . Thermal 381 | . . 147 234 Explosive 271 | . . . 271 Electromagnetic 490 | . 153 259 78 Impact 550 | . . . 550 Slashing . | . . . . Piercing . | . . . . Highest Corruption . | . . . . Average Corruption . | . . . . Corruption Purged . | . . . . Corruption Blocked . | . . . . Overload Shots . | . . . . Overflow Damage 88 | . . 4 84 Projectiles . | . . . . Explosions 10 | . . 4 6 Melee 78 | . . . 78 Knockbacks 5 | . . . 5 Impact 5 | . . . 5 Kinetic . | . . . . Secondary . | . . . . Self-Inflicted Damage 52 | . . 35 17 Shots 3 | . . 1 2 Rammed 2 | . . . 2 Targets Rammed 3 | 1 . . 2 Kicked 1 | 1 . . . Crushed . | . . . . Highest Temperature 144 | . 144 102 138 Average Temperature 41 | . 59 36 34 Received Heat Transfer 576 | . 42 48 486 Siege Activations . | . . . . Martial Activations . | . . . . Shielding Activations . | . . . . Robots Disrupted . | . . . . Combat Hostiles . | . . . . Robots Corrupted 4 | . . . 4 Combat Hostiles 4 | . . . 4 Parts Fried 3 | . 1 . 2 Impact Corruptions 6 | . . . 6 Robots Melted . | . . . . Combat Hostiles . | . . . . Parts Melted . | . . . . Heat Transferred 644 | . . 200 444 Parts Sabotaged . | . . . . Parts Stolen . | . . . . Parts Stripped . | . . . . Power Chain Reactions 2 | . . 2 . Alert | -11 -10 -10 -9 ------- Run | Yrd Mat Min Mat Maximum Alert Level . | . . . . Low Security (%) 100 | 100 100 100 100 Level 1 . | . . . . Level 2 . | . . . . Level 3 . | . . . . Level 4 . | . . . . Level 5 . | . . . . High Security . | . . . . Max Security . | . . . . Peak Influence 140 | . 40 140 98 Initial 24 | . . . 24 Average 31 | . 8 60 25 Influence Increases 636 | . 65 210 361 Destroy 0b10 Robot/C 440 | . 40 180 220 Destroy 0b10 Robot/NC 35 | . . 5 30 Destroy Leader 66 | . 10 20 36 Successful Hack 21 | . . . 21 Disable Machine 30 | . 15 . 15 Destroy Structure 29 | . . 5 24 Lose Combat Pursuer 15 | . . . 15 Influence Decreases 545 | . 65 146 334 Entered New Map 40 | . . . 40 Time Decay 438 | . 65 136 237 Lost Part 67 | . . 10 57 Squads Dispatched 2 | . 1 . 1 Investigation 1 | . 1 . . Extermination . | . . . . Reinforcement 1 | . . . 1 Assault . | . . . . Garrison . | . . . . Intercept . | . . . . Searches Triggered . | . . . . Construction Impeded . | . . . . Haulers Reinforced . | . . . . Active Scanning Responses . | . . . . Cargo Convoy Interrupts . | . . . . Stealth | -11 -10 -10 -9 --------- Run | Yrd Mat Min Mat Distress Signals 5 | . . . 5 Communications Jammed . | . . . . Distress Signals . | . . . . Times Spotted 36 | . 4 12 20 Peak Tracking Total 5 | . 2 3 5 Tactical Retreats 1 | . . . 1 Traps | -11 -10 -10 -9 ------- Run | Yrd Mat Min Mat Traps Triggered 5 | . 1 . 4 Indirectly . | . . . . Trap Hack Attempts . | . . . . Triggered . | . . . . Disarmed . | . . . . Reprogrammed . | . . . . Reused . | . . . . Traps Extracted . | . . . . Installed . | . . . . Triggered . | . . . . Machines | -11 -10 -10 -9 ---------- Run | Yrd Mat Min Mat Machines Disabled 2 | . 1 . 1 Max in Single Turn 1 | . 1 . 1 Machines Repaired . | . . . . Machines Dismantled . | . . . . Machines Sabotaged . | . . . . Overloaded Fab Kills . | . . . . Hacking | -11 -10 -10 -9 --------- Run | Yrd Mat Min Mat Machines Accessed 2 | . . . 2 Terminals 2 | . . . 2 Fabricators . | . . . . Repair Stations . | . . . . Recycling Units . | . . . . Scanalyzers . | . . . . Garrison Access . | . . . . Total Hacks 4 | . . . 4 Successful 2 | . . . 2 Failed 2 | . . . 2 Catastrophic . | . . . . Database Lockouts . | . . . . Manual . | . . . . Terminals 4 | . . . 4 Fabricators . | . . . . Repair Stations . | . . . . Recycling Units . | . . . . Scanalyzers . | . . . . Garrison Access . | . . . . Terminal Hacks 2 | . . . 2 Prototype ID Bank 1 | . . . 1 Registered Components 1 | . . . 1 Fabricator Hacks . | . . . . Repair Station Hacks . | . . . . Recycling Unit Hacks . | . . . . Scanalyzer . | . . . . Garrison Access Hacks . | . . . . Unauthorized Hacks . | . . . . Terminals . | . . . . Fabricators . | . . . . Repair Stations . | . . . . Recycling Units . | . . . . Scanalyzers . | . . . . Garrison Access . | . . . . Data Cores Recovered . | . . . . Used . | . . . . Hacking Detections 2 | . . . 2 Full Trace Events . | . . . . Feedback Events . | . . . . Feedback Blocked . | . . . . Robot Schematics Acquired . | . . . . Robots Built . | . . . . Authchips . | . . . . Time . | . . . . Total Robot Build Rating . | . . . . Part Schematics Acquired . | . . . . Parts Built . | . . . . Authchips . | . . . . Time . | . . . . Total Part Build Rating . | . . . . Parts Repaired . | . . . . Time . | . . . . Parts Recycled . | . . . . Recycled Matter . | . . . . Retrieved Matter . | . . . . Retrieved Components . | . . . . Parts Scanalyzed . | . . . . Part Schematics Acquired . | . . . . Parts Damaged . | . . . . Bothacking | -11 -10 -10 -9 ------------ Run | Yrd Mat Min Mat Used RIF Installer . | . . . . Robots Hacked . | . . . . Non-combat . | . . . . Combat . | . . . . Robot Hacks Applied . | . . . . Relay Couplers Released . | . . . . Fabnet Peak Effective % . | . . . . Robots Rewired . | . . . . Allies Hacked . | . . . . Hacks Repelled . | . . . . Allies | -11 -10 -10 -9 -------- Run | Yrd Mat Min Mat Total Allies . | . . . . Largest Group . | . . . . Highest-Rated Group . | . . . . Highest-Rated Ally . | . . . . Total Orders . | . . . . Ally Attacks . | . . . . Total Damage . | . . . . Kills . | . . . . Allies Corrupted . | . . . . Allies Melted . | . . . . Intel | -11 -10 -10 -9 ------- Run | Yrd Mat Min Mat Active Infowar (turns) . | . . . . Robot Analysis Total . | . . . . Derelict Logs Recovered . | . . . . Drone Launches . | . . . . Drone Recoveries . | . . . . Exploration | -11 -10 -10 -9 ------------- Run | Yrd Mat Min Mat Turns Passed 1501 | 55 229 424 793 Spaces Moved 876 | 51 162 306 357 Core 30 | 27 . . 3 Treads . | . . . . Legs 846 | 24 162 306 354 Wheels . | . . . . Hover . | . . . . Flight . | . . . . Fastest Speed 50 | 50 120 120 120 Average Speed 136 | 82 120 120 166 Slowest Speed 400 | 120 120 120 400 Overloaded Moves . | . . . . Propulsion Burnouts . | . . . . Robots Hopped . | . . . . Potential Cave-ins . | . . . . Cave-ins Triggered . | . . . . Exploration Rate (%) 34 | 3 23 80 30 Regions Visited 3 Branch Regions 1 Pre-discovered Areas 1 | . . 1 . Known Exits Taken . | . . . . Unknown Exits Taken 3 | 1 1 1 . Scrap Searched 1 | . . 1 . Spaces Dug . | . . . . Terrain Destroyed 30 | . . 5 25 Melee . | . . . . Projectile . | . . . . AOE 30 | . . 5 25 Terrain Rammed . | . . . . Walls Destroyed . | . . . . Machines Disabled . | . . . . Actions | -11 -10 -10 -9 --------- Run | Yrd Mat Min Mat Total 1060 | 63 177 333 487 Wait 38 | . . 4 34 Move 873 | 50 161 305 357 Hop . | . . . . Pick Up 30 | 6 5 1 18 Fast Attach 3 | . 1 . 2 Attach 19 | 6 . 1 12 Detach 1 | . . . 1 Swap 11 | . 1 3 7 Drop 10 | . . 3 7 Fire 49 | . 9 16 24 Melee 23 | . . . 23 Ram 2 | . . . 2 Kick 1 | 1 . . . Crush . | . . . . Escape Stasis . | . . . . Rewire . | . . . . Trap . | . . . . Miscellaneous . | . . . . Route ------- -11/Scrapyard -10/Materials -10/Mines -9/Materials (discovered 1 exit: [*Min]) History --------- Turn | Location | Event 15 | -11/Scrapyard | Discovered new exit (range 16) 56 | -11/Scrapyard | Entered Materials 245 | -10/Materials | Discovered new exit (range 5) 285 | -10/Materials | Entered Mines 302 | -10/Mines | Build established: Mutant 393 | -10/Mines | Met a Derelict bent on vengeance 465 | -10/Mines | Excavation squad dispatched 465 | -10/Mines | A large section of the Mines collapsed 690 | -10/Mines | Discovered new exit (range 15) 696 | -10/Mines | Learned location of Storage (-9) 709 | -10/Mines | Entered Materials 709 | -9/Materials | Evolved 2 slots: Propulsion x1, Utility x1 1173 | -9/Materials | Discovered new exit (range 16) 1233 | -9/Materials | Core integrity fell below 50% 1393 | -9/Materials | Core integrity fell below 20% 1436 | -9/Materials | Lost 5 parts (3n1u1w) 1502 | -9/Materials | Destroyed by G-47 Trooper with Particle Gun Last Messages --------------- 01471_ Massive razor-sharp blades shoot up from within the floor. 01471_ Hvy. Hammer severed. 01471_ Melee Analysis Suite severed. 01475_ U-05 Engineer lays Concrete. 01476_ R-06 Scavenger collects Aluminum Leg. 01477_ U-05 Engineer lays Concrete. 01477_ R-06 Scavenger collects Imp. Aluminum Leg. 01478_ Slammed into R-06 Scavenger. 01478_ Destabilizing: System interference. 01478_ Signal Interpreter temporarily disabled. 01481_ R-06 Scavenger collects Hvy. Hammer. 01485_ Slammed into R-06 Scavenger. 01485_ Triggered Blade Trap. 01485_ Massive razor-sharp blades shoot up from within the floor. 01485_ Signal Interpreter severed. 01487_ U-05 Engineer lays Concrete. 01487_ Critical hit (Burn: +37). 01496_ G-34 Mercenary destroyed. 01496_ K-01 Serf destroyed. 01496_ K-01 Serf collects debris. Map ----- +----------------------------------------------------+ | = =#####?????# # #???####?????????????????? | | [ # ###########+#### #?? #?????????????????? | | ! %# ## #?[ """#?????????????????? | | ! [+ ######### ## # """#???!?????????????? | | #### #???????# T ## # """#?????????????????? | | ## #???????# + #?????????????????? | | #???????# ## # /#?????????????????? | | #???????## ### #??#####?????????????????? | | #????????# #?# #????????????????????????? | | ######????????# ###+#######??????????????????? | | ##?????????????# # ^ #??????????????????? | | #??????????????# # #??????????????????? | | #??????????????# # #??????????????????? | | #??############# # #??????????????????? | | ?? # #??????????????????? | | #=""" "" #??????????????????? | | ??? #%""" "" #??????????????????? | | #####?????????## +!""" "" #??????????????????? | | #??????????????# %################?#???????????? | | #??????????????# u #??????# #???????????? | | ????????####### ######## """"" #???????????? | | ????????# u = # """"" #???????????? | | ????????# ##### %* + """"" #???????????? | | ??????????????# ! g= # #???????????? | | ?????????????#####/#####%[ # #???????????? | | ?????????????# #*@^# ! #???????????? | | ?????????????# """ " " # ^^# ! #???????????? | | ?????????????# """ "" =# #####+#######+#####???? | | ?????????????# """ """%# #?? | | ?????????????# %% %g #???????? | | ?????????????# # u #???????? | | ?????????????# ####+### ##### ##???????? | | |????????????# # # #?????#????????? | | ?????????????########### # #??????????????? | | ???????????????????????# ""# #??????????????? | | ???????????????????????# Y"# #??????????????? | | ???????????????????????# ""# #??????????????? | | ???????????????????????# # #??????????????? | | ???????????????????????######## +??????????????? | | ??????????????????????????????# #??????????????? | | ??????????????????????????????# #??????????????? | | ??????????????????????????????# #??????????????? | | ??????????????????????????????# #??????????????? | | ??????????????????????????????? #??????????????? | | ??????????????????????????????? #??????????????? | | ??????????????????????????????? ???????????????? | | ?????????????????????????????????????????????????? | | ?????????????????????????????????????????????????? | | ?????????????????????????????????????????????????? | | ?????????????????????????????????????????????????? | +----------------------------------------------------+ Best States ------------- Heat Dissipation 28 Energy Generation 10 Energy Capacity 250 Matter Stores 300 Matter Capacity 300 Sight Range 16 Terrain Scan Density 10 Armor Coverage 150 Evasion (%) 55 Targeting Accuracy 6 Melee Accuracy 5 Item Schematics ----------------- None Robot Schematics ------------------ None Fabricated ------------ Nothing Repaired ---------- Nothing Alien Tech Used ----------------- None Achievements -------------- Power Corrupts Challenges ------------ None Game ------ Seed CoilSensorTrap Manual? 0 Play Time 00:22:21 Cumulative 0.9 hours Start 2025.09.23 @ 16:46:55 End 2025.09.23 @ 17:07:28 Sessions 1 Manual Loads 0 Difficulty Rogue Special Mode None Game No. 2 Rogue 2 Adventurer 0 Explorer 0 Win Type - Total 0 Types 0/0/0/0/0/0/0/0/0/0 Lore% 0 Gallery% 2 Achievement% 3 Wizard Run 0 Options --------- Layout 0 ASCII 0 Keyboard 1 Movement Arrows Keybinds 0 Fullscreen 1 Font 24/Smallcaps Map View 76x50 Zoom Use 0% Tactical HUD 1 Map Filters NONE Filters NONE Steam 1 RUN: 523db23a-44b1-4159-a999-410f8e595632